fUST/lending_fUST_20240728
["ID","MTS","AMOUNT","RATE_DAILY","PERIOD"]
[333393289,1722101441521,-151.0,0.0001349,2]
[333393291,1722101441530,-151.0,0.0001349,2]
[333393293,1722101441540,-286.932073,0.0001349,2]
[333393295,1722101441550,-150.112233,0.000135,2]
[333393297,1722101441559,-150.112233,0.000135,2]
[333393299,1722101441569,-567.814684,0.00013528,2]
[333393301,1722101441579,-567.814684,0.00013528,2]
[333393303,1722101441589,-151.0,0.00013528,2]
[333393305,1722101441598,-151.0,0.00013528,2]
[333393307,1722101441608,-1197.731858,0.00013528,2]
[333393309,1722101441617,-151.0,0.00013528,2]
[333393311,1722101441626,-1197.731858,0.00013528,2]
[333393313,1722101441635,-237.614368,0.00013528,2]
[333393315,1722101441646,-1666.830575,0.00013528,2]
[333393317,1722101441655,-1666.830575,0.00013528,2]
[333393319,1722101441664,-505.0,0.00013529,2]
[333393321,1722101441673,-1409.0,0.00013529,2]
[333393323,1722101441683,-154.61816766,0.00013544,2]
[333393325,1722101441693,-37706.1551112,0.0001356,2]
[333393327,1722101441703,-245.29535,0.00013568,2]
[333393328,1722101441712,-151.0,0.00013568,2]
[333393330,1722101441723,-151.0,0.00013568,2]
[333393333,1722101441735,-151.0,0.00013568,2]
[333393335,1722101441745,-151.0,0.00013568,2]
[333393337,1722101441755,-151.0,0.00013568,2]
[333393339,1722101441764,-1197.731858,0.00013568,2]
[333393341,1722101441774,-151.0,0.00013568,2]
[333393343,1722101441784,-1197.731858,0.00013568,2]
[333393345,1722101441794,-1666.830575,0.00013568,2]
[333393347,1722101441803,-1666.830575,0.00013568,2]
[333393349,1722101441813,-151.0,0.0001357,2]
[333393351,1722101441823,-151.0,0.0001357,2]
[333393353,1722101441833,-151.639639,0.0001357,2]
[333393355,1722101441844,-176.431962,0.0001357,2]
[333393356,1722101441853,-151.0,0.0001357,2]
[333393358,1722101441864,-256.048808,0.0001357,2]
[333393360,1722101441874,-151.0,0.0001357,2]
[333393362,1722101441884,-151.0,0.0001357,2]
[333393363,1722101441893,-151.0,0.0001357,2]
[333393364,1722101441903,-151.0,0.0001357,2]
[333393366,1722101441914,-151.0,0.0001357,2]
[333393368,1722101441925,-151.0,0.0001357,2]
[333393369,1722101441936,-567.814684,0.0001357,2]
[333393370,1722101441946,-567.814684,0.0001357,2]
[333393372,1722101441956,-567.814684,0.0001357,2]
[333393374,1722101441965,-567.814684,0.0001357,2]
[333393375,1722101441977,-567.814684,0.0001357,2]
[333393376,1722101441987,-567.814684,0.0001357,2]
[333393377,1722101441997,-567.814684,0.0001357,2]
[333393378,1722101442008,-567.814684,0.0001357,2]
[333393379,1722101442018,-151.0,0.0001357,2]
[333393380,1722101442028,-151.0,0.0001357,2]
[333393381,1722101442037,-151.0,0.0001357,2]
[333393382,1722101442048,-1197.731858,0.0001357,2]
[333393383,1722101442058,-151.0,0.0001357,2]
[333393384,1722101442068,-1197.73185818,0.0001357,2]
[333393385,1722101442078,-1666.830575,0.0001357,2]
[333393386,1722101442088,-1666.830572,0.0001357,2]
[333393387,1722101442098,-151.0,0.00013578,2]
[333393388,1722101442108,-567.814684,0.00013578,2]
[333393389,1722101442117,-567.814689,0.00013578,2]
[333393390,1722101442126,-151.0,0.0001358,2]
[333393391,1722101442136,-151.0,0.0001358,2]
[333393392,1722101442147,-151.0,0.0001358,2]
[333393393,1722101442156,-151.0,0.0001358,2]
[333393394,1722101442166,-151.0,0.0001358,2]
[333393395,1722101442175,-151.0,0.0001358,2]
[333393396,1722101442185,-151.0,0.0001358,2]
[333393397,1722101442194,-157.558793,0.0001358,2]
[333393398,1722101442203,-27709.89115642,0.0001358,5]
[333393399,1722101442213,-113118.465334,0.0001358,2]
[333393400,1722101442224,-76412.67936674,0.0001359,2]
[333393401,1722101442241,-5748.00496909,0.0001359,2]
[333393402,1722101442254,-9628.21162624,0.0001359,2]
[333393403,1722101442274,-2075.65589102,0.0001359,2]
[333393439,1722101443697,-294.0187007,0.00012746,2]
[333393441,1722101443706,-278.870538,0.0001348,2]
[333393443,1722101443716,-278.870538,0.0001348,2]
[333393445,1722101443726,-278.870538,0.0001348,2]
[333393447,1722101443736,-278.870538,0.0001348,2]
[333393449,1722101443745,-278.870538,0.0001348,2]
[333393451,1722101443756,-177.097647,0.0001348,2]
[333393453,1722101443765,-177.097647,0.0001348,2]
[333393455,1722101443775,-278.870538,0.0001348,2]
[333393457,1722101443784,-177.097647,0.0001348,2]
[333393459,1722101443793,-278.870538,0.0001348,2]
[333393461,1722101443803,-177.097647,0.0001348,2]
[333393463,1722101443812,-278.870538,0.0001348,2]
[333393465,1722101443821,-177.097647,0.0001348,2]
[333393467,1722101443831,-16.1287603,0.0001348,2]
[333393647,1722101445573,273.37336231,9.9e-05,2]
[333393775,1722101446984,-156.71074716,0.0001212,2]
[333393777,1722101446995,-150.0,0.00013398,2]
[333393779,1722101447005,-262.7417777,0.0001348,2]
[333393781,1722101447015,-177.097647,0.0001348,2]
[333393784,1722101447025,-278.870538,0.0001348,2]
[333393786,1722101447035,-74.35247764,0.0001348,2]
[333393788,1722101447048,-102.74516936,0.0001348,2]
[333393790,1722101447058,-168.07171319,0.0001348,2]
[333393874,1722101462339,200.0,0.0001,2]
[333393878,1722101495252,727.02832733,9.999e-05,2]
[333393879,1722101496669,413.63079778,9.999e-05,2]
[333393880,1722101499063,154.81751879,9.999e-05,2]
[333393881,1722101499390,533.56056987,9.999e-05,2]
[333393882,1722101500109,341.81287151,9.999e-05,2]
[333393884,1722101501237,16018.3201662,0.0001,2]
[333393885,1722101502062,531.61181222,9.999e-05,2]
[333393886,1722101502103,375.79677847,9.999e-05,2]
[333393887,1722101503500,1625.30319851,9.999e-05,2]
[333393888,1722101504675,154.66746495,9.999e-05,2]
[333393889,1722101505514,256.44909071,9.999e-05,2]
[333393890,1722101507452,779.13201586,9.999e-05,2]
[333393891,1722101508630,288.3347294,9.999e-05,2]
[333393892,1722101509447,600.44431657,9.999e-05,2]
[333393893,1722101510480,806.45186026,9.999e-05,2]
[333393894,1722101510790,160.02872969,9.999e-05,2]
[333393895,1722101511827,178.30906711,9.999e-05,2]
[333393896,1722101512759,154.85752887,9.999e-05,2]
[333393897,1722101513970,304.2817983,9.999e-05,2]
[333393898,1722101514128,253.533236,9.999e-05,2]
[333393899,1722101515108,404.41023413,9.999e-05,2]
[333393900,1722101515804,154.66746495,9.999e-05,2]
[333393901,1722101516143,156.05197447,9.999e-05,2]
[333393902,1722101516927,154.66746495,9.999e-05,2]
[333393903,1722101517268,663.78880537,9.999e-05,2]
[333393904,1722101517688,185.28265218,0.0001,2]
[333393905,1722101520181,154.66746495,9.999e-05,2]
[333393906,1722101520580,521.74223491,9.999e-05,2]
[333393907,1722101521132,248.87416602,9.999e-05,2]
[333393908,1722101521163,154.80649189,9.999e-05,2]
[333393909,1722101522323,220.99252055,9.999e-05,2]
[333393910,1722101522455,519.24134864,9.999e-05,2]
[333393911,1722101522808,155.0383145,9.999e-05,2]
[333393912,1722101522882,941.81566876,9.999e-05,2]
[333393913,1722101523013,218.09499306,0.0001,2]
[333393914,1722101523365,200.0,0.0001,2]
[333393915,1722101524648,154.66746495,9.999e-05,2]
[333393916,1722101525071,240.59744191,9.999e-05,2]
[333393917,1722101525983,233.4520836,9.999e-05,2]
[333393918,1722101526159,306.95511871,9.999e-05,2]
[333393919,1722101526328,287.48002697,0.0001,2]
[333393920,1722101526883,154.80649189,9.999e-05,2]
[333393921,1722101527129,2106.31551891,0.0001,2]
[333393922,1722101530657,188.0737834,9.999e-05,2]
[333393923,1722101531477,208.55751505,9.999e-05,2]
[333393924,1722101531567,201.30530872,9.999e-05,2]
[333393925,1722101531762,209.69045866,9.999e-05,2]
[333393926,1722101536083,403.39616838,9.999e-05,2]
[333393927,1722101536264,156.4756886,9.999e-05,2]
[333393928,1722101536295,568.18099482,9.999e-05,2]
[333393929,1722101536409,154.66746495,9.999e-05,2]
[333393930,1722101536734,285.93068112,9.999e-05,2]
[333393931,1722101537094,319.18205091,9.999e-05,2]
[333393932,1722101538044,156.59792059,9.999e-05,2]
[333393933,1722101540164,498.20643236,9.999e-05,2]
[333393934,1722101540263,731.30595831,9.999e-05,2]
[333393935,1722101540479,156.17659771,9.999e-05,2]
[333393936,1722101542825,154.86308045,9.999e-05,2]
[333393937,1722101546280,444.48205735,9.999e-05,2]
[333393938,1722101548789,273.37336231,9.9e-05,2]
[333393939,1722101551639,154.80649189,9.999e-05,2]
[333393940,1722101554486,154.66746495,9.999e-05,2]
[333393941,1722101569289,157.11584755,9.999e-05,2]
[333393942,1722101576765,3776.426534,9.999e-05,2]
[333393943,1722101593672,193.77561138,9.999e-05,2]
[333393944,1722101595483,806.05588031,9.999e-05,2]
[333393945,1722101595615,341.43223162,9.999e-05,2]
[333393946,1722101597702,154.66746495,9.999e-05,2]
[333393947,1722101598469,600.03376352,9.999e-05,2]
[333393948,1722101599606,288.28494131,9.999e-05,2]
[333393949,1722101604125,413.56025777,9.999e-05,2]
[333393950,1722101604271,726.90527473,9.999e-05,2]
[333393951,1722101604448,196.79672955,9.999e-05,2]
[333393952,1722101604508,778.99945191,9.999e-05,2]
[333393953,1722101611077,531.48394827,9.999e-05,2]
[333393954,1722101611109,375.48857466,9.999e-05,2]
[333393955,1722101611921,533.46933228,9.999e-05,2]
[333393956,1722101612335,154.80643637,9.999e-05,2]
[333393957,1722101617949,519.40060795,9.999e-05,2]
[333393958,1722101626187,154.80643637,9.999e-05,2]
[333393960,1722101641582,521.61052637,9.999e-05,2]
[333393961,1722101641748,154.80649189,9.999e-05,2]
[333393962,1722101642279,567.99228217,9.999e-05,2]
[333393963,1722101651571,154.82188072,9.999e-05,2]
[333393966,1722101705708,154.96092308,9.999e-05,2]
[333393969,1722102348384,-709.48,0.00010959,2]
[333393970,1722102348408,-186.17799422,0.00010959,2]
[333393971,1722102431098,-191.47619051,0.00010859,2]
[333393972,1722102431121,-179.05200578,0.00010959,2]
[333393973,1722102431143,-250.0,0.00011298,2]
[333393974,1722102431167,-168.8929,0.00011848,2]
[333393975,1722102431190,-168.8929,0.00011917,2]
[333393976,1722102431214,-28.81276671,0.00011986,2]
[333393977,1722102434107,-140.08013329,0.00011986,2]
[333393978,1722102434130,-168.8929,0.00012054,2]
[333393979,1722102434152,-12.76221768,0.0001212,2]
[333393980,1722102446110,-287.23778232,0.0001212,2]
[333393981,1722102446133,-300.0,0.0001212,2]
[333393982,1722102446156,-1796.35420148,0.00012121,2]
[333393983,1722102560184,-303.1,0.00010959,2]
[333393984,1722102560207,-252.59,0.00010959,2]
[333393985,1722102560230,-210.49,0.00010959,2]
[333393986,1722102560252,-175.41,0.00010959,2]
[333393987,1722102560274,-855.6256494,0.00010959,2]
[333394001,1722102631950,-300.0,0.00011944,2]
[333394003,1722102631961,-558.56905389,0.00011945,2]
[333394005,1722102631974,-7861.41653743,0.00011945,2]
[333394011,1722102632061,-15747.78380518,0.00011945,2]
[333394012,1722102632071,-1659.03917763,0.00012121,2]
[333394013,1722102632080,-168.8929,0.00012123,2]
[333394014,1722102632090,-168.8929,0.00012191,2]
[333394015,1722102632099,-168.8929,0.0001226,2]
[333394016,1722102632109,-168.8929,0.00012329,2]
[333394017,1722102632118,-168.8929,0.00012397,2]
[333394018,1722102632127,-168.8929,0.00012466,2]
[333394019,1722102632136,-4000.0,0.00013,3]
[333394020,1722102632146,-242.0,0.00013113,2]
[333394021,1722102632155,-150.0,0.00013184,2]
[333394022,1722102632164,-255.00276077,0.000132,2]
[333394023,1722102632175,-367.57032676,0.00013312,2]
[333394024,1722102632185,-210.6048969,0.00013334,2]
[333394025,1722102632194,-153.0,0.00013334,2]
[333394026,1722102632204,-382.6476559,0.00013334,2]
[333394027,1722102632213,-306.0,0.00013334,2]
[333394028,1722102632223,-153.0,0.00013334,2]
[333394029,1722102632233,-5308.13158001,0.00013349,2]
[333394030,1722102632243,-150.0,0.00013408,2]
[333394031,1722102632252,-505.0,0.00013408,2]
[333394032,1722102632262,-1409.0,0.00013408,2]
[333394033,1722102632271,-167.189221,0.00013425,2]
[333394034,1722102632281,-164.22306771,0.0001348,2]
[333394035,1722102632290,-164.22306771,0.00013518,2]
[333394036,1722102632300,-164.22306771,0.00013557,2]
[333394037,1722102632310,-38377.5258751,0.00013578,2]
[333394038,1722102632320,-11420.7135502,0.0001358,2]
[333394069,1722102637793,-157.34846085,0.00013283,2]
[333394071,1722102637803,-427.18722423,0.0001358,2]
[333394079,1722102637867,-4738.41624825,0.0001358,2]
[333394081,1722102637877,-60262.04340773,0.0001358,2]
[333394083,1722102637889,-16493.00834247,0.0001358,2]
[333394085,1722102637899,-88888.0,0.00013588,2]
[333394087,1722102637909,-1031.258444,0.00013588,2]
[333394089,1722102637918,-1031.258444,0.00013588,2]
[333394091,1722102637933,-151.0,0.00013588,2]
[333394093,1722102637942,-151.0,0.00013588,2]
[333394095,1722102637951,-216.055335,0.00013588,2]
[333394097,1722102637961,-216.055335,0.00013588,2]
[333394099,1722102637971,-578.167958,0.00013588,2]
[333394101,1722102637981,-578.167958,0.00013588,2]
[333394103,1722102637991,-151.0,0.00013588,2]
[333394105,1722102638001,-151.0,0.00013588,2]
[333394107,1722102638011,-151.0,0.00013588,2]
[333394109,1722102638022,-151.0,0.00013588,2]
[333394112,1722102638032,-151.0,0.00013588,2]
[333394114,1722102638041,-462.312973,0.00013588,2]
[333394116,1722102638051,-769.67113,0.00013588,2]
[333394118,1722102638062,-462.312973,0.00013588,2]
[333394120,1722102638071,-769.67113,0.00013588,2]
[333394122,1722102638081,-151.0,0.00013588,2]
[333394124,1722102638091,-66782.55749481,0.0001359,2]
[333394127,1722102638109,-151.0,0.0001359,2]
[333394129,1722102638122,-151.0,0.0001359,2]
[333394131,1722102638132,-151.0,0.0001359,2]
[333394133,1722102638142,-151.0,0.0001359,2]
[333394135,1722102638152,-151.0,0.0001359,2]
[333394137,1722102638162,-151.0,0.0001359,2]
[333394139,1722102638172,-151.0,0.0001359,2]
[333394141,1722102638187,-151.0,0.0001359,2]
[333394143,1722102638196,-151.0,0.0001359,2]
[333394146,1722102638207,-583.536551,0.0001359,2]
[333394148,1722102638217,-583.536551,0.0001359,2]
[333394150,1722102638227,-151.0,0.0001359,2]
[333394152,1722102638237,-151.0,0.0001359,2]
[333394154,1722102638247,-151.0,0.0001359,2]
[333394156,1722102638256,-189.603126,0.0001359,2]
[333394158,1722102638266,-160.319067,0.0001359,2]
[333394160,1722102638276,-158.774726,0.0001359,2]
[333394162,1722102638286,-151.0,0.0001359,2]
[333394164,1722102638295,-286.932073,0.0001359,2]
[333394166,1722102638305,-288.841868,0.0001359,2]
[333394168,1722102638314,-288.841868,0.0001359,2]
[333394170,1722102638325,-151.0,0.0001359,2]
[333394172,1722102638339,-218.791047,0.0001359,2]
[333394174,1722102638350,-151.0,0.0001359,2]
[333394177,1722102638362,-218.791047,0.0001359,2]
[333394179,1722102638373,-1069.885073,0.0001359,2]
[333394181,1722102638383,-1069.885073,0.0001359,2]
[333394183,1722102638392,-151.0,0.0001359,2]
[333394184,1722102638404,-151.0,0.0001359,2]
[333394185,1722102638414,-151.0,0.0001359,2]
[333394186,1722102638423,-151.0,0.0001359,2]
[333394187,1722102638437,-151.0,0.0001359,2]
[333394188,1722102638446,-151.0,0.0001359,2]
[333394189,1722102638456,-1363.66446,0.0001359,2]
[333394190,1722102638466,-1363.66446,0.0001359,2]
[333394191,1722102638477,-151.0,0.0001359,2]
[333394192,1722102638487,-151.0,0.0001359,2]
[333394193,1722102638496,-343.494831,0.0001359,2]
[333394194,1722102638505,-535.37975,0.0001359,2]
[333394195,1722102638515,-343.494831,0.0001359,2]
[333394196,1722102638526,-535.37975,0.0001359,2]
[333394197,1722102638535,-1031.258444,0.0001359,2]
[333394198,1722102638545,-1031.258444,0.0001359,2]
[333394199,1722102638555,-151.0,0.0001359,2]
[333394200,1722102638565,-151.0,0.0001359,2]
[333394201,1722102638575,-216.055335,0.0001359,2]
[333394202,1722102638584,-216.055335,0.0001359,2]
[333394203,1722102638594,-578.167958,0.0001359,2]
[333394204,1722102638604,-578.167958,0.0001359,2]
[333394206,1722102638615,-151.0,0.0001359,2]
[333394208,1722102638626,-179.253277,0.0001359,2]
[333394210,1722102638637,-151.0,0.0001359,2]
[333394212,1722102638647,-151.0,0.0001359,2]
[333394214,1722102638658,-151.0,0.0001359,2]
[333394216,1722102638669,-462.312973,0.0001359,2]
[333394217,1722102638681,-769.67113,0.0001359,2]
[333394218,1722102638690,-462.312973,0.0001359,2]
[333394220,1722102638700,-769.67113,0.0001359,2]
[333394222,1722102638709,-151.0,0.0001359,2]
[333394224,1722102638719,-164.22306771,0.00013595,2]
[333394226,1722102638730,-4000.0,0.000136,2]
[333394228,1722102638740,-150.112233,0.000136,2]
[333394230,1722102638750,-150.112233,0.000136,2]
[333394231,1722102638760,-150.112233,0.000136,2]
[333394232,1722102638770,-600.0,0.000136,2]
[333394233,1722102638780,-158.0,0.0001362,2]
[333394234,1722102638791,-151.0,0.00013668,2]
[333394235,1722102638801,-288.841868,0.00013668,2]
[333394236,1722102638810,-288.841868,0.00013668,2]
[333394237,1722102638820,-151.0,0.00013668,2]
[333394238,1722102638829,-218.791047,0.00013668,2]
[333394239,1722102638838,-151.0,0.00013668,2]
[333394240,1722102638848,-218.791047,0.00013668,2]
[333394241,1722102638856,-1069.885073,0.00013668,2]
[333394242,1722102638866,-1069.885073,0.00013668,2]
[333394243,1722102638876,-151.0,0.00013668,2]
[333394244,1722102638885,-151.0,0.00013668,2]
[333394245,1722102638894,-151.0,0.00013668,2]
[333394246,1722102638903,-151.0,0.00013668,2]
[333394247,1722102638912,-1363.66446,0.00013668,2]
[333394248,1722102638921,-151.0,0.00013668,2]
[333394249,1722102638932,-1363.66446,0.00013668,2]
[333394250,1722102638941,-151.0,0.00013668,2]
[333394251,1722102638951,-151.0,0.00013668,2]
[333394252,1722102638960,-343.494831,0.00013668,2]
[333394253,1722102638972,-535.37975,0.00013668,2]
[333394254,1722102638982,-343.494831,0.00013668,2]
[333394255,1722102638991,-535.37975,0.00013668,2]
[333394256,1722102639000,-1031.258444,0.00013668,2]
[333394257,1722102639009,-1031.258444,0.00013668,2]
[333394258,1722102639019,-1031.258444,0.00013668,2]
[333394259,1722102639028,-1031.258444,0.00013668,2]
[333394260,1722102639037,-151.0,0.00013668,2]
[333394261,1722102639046,-151.0,0.00013668,2]
[333394262,1722102639056,-151.0,0.00013668,2]
[333394263,1722102639065,-216.055335,0.00013668,2]
[333394264,1722102639074,-216.055335,0.00013668,2]
[333394265,1722102639085,-216.055335,0.00013668,2]
[333394266,1722102639094,-216.055335,0.00013668,2]
[333394267,1722102639104,-578.167958,0.00013668,2]
[333394268,1722102639114,-578.167958,0.00013668,2]
[333394269,1722102639123,-578.167958,0.00013668,2]
[333394270,1722102639132,-578.167958,0.00013668,2]
[333394271,1722102639142,-151.0,0.00013668,2]
[333394272,1722102639152,-151.0,0.00013668,2]
[333394273,1722102639162,-151.0,0.00013668,2]
[333394274,1722102639171,-151.0,0.00013668,2]
[333394275,1722102639183,-151.0,0.00013668,2]
[333394276,1722102639192,-151.0,0.00013668,2]
[333394277,1722102639202,-245.29535,0.00013668,2]
[333394278,1722102639213,-462.312973,0.00013668,2]
[333394279,1722102639224,-462.312973,0.00013668,2]
[333394280,1722102639237,-769.67113,0.00013668,2]
[333394281,1722102639249,-769.67113,0.00013668,2]
[333394282,1722102639259,-462.312973,0.00013668,2]
[333394283,1722102639269,-462.312973,0.00013668,2]
[333394284,1722102639278,-769.67113,0.00013668,2]
[333394285,1722102639288,-769.67113,0.00013668,2]
[333394286,1722102639297,-151.0,0.00013668,2]
[333394287,1722102639307,-151.0,0.00013668,2]
[333394288,1722102639318,-38377.5258751,0.00013668,2]
[333394289,1722102639331,-38377.5258751,0.00013678,2]
[333394290,1722102639343,-151.0,0.00013678,2]
[333394291,1722102639355,-151.0,0.00013678,2]
[333394292,1722102639368,-151.0,0.00013678,2]
[333394293,1722102639378,-151.0,0.00013678,2]
[333394294,1722102639388,-151.0,0.00013678,2]
[333394295,1722102639397,-151.0,0.00013678,2]
[333394297,1722102639407,-151.0,0.00013678,2]
[333394299,1722102639420,-151.0,0.00013678,2]
[333394300,1722102639431,-583.536551,0.00013678,2]
[333394301,1722102639441,-583.536551,0.00013678,2]
[333394312,1722102639643,-151.0,0.00013678,2]
[333394313,1722102639653,-151.0,0.00013678,2]
[333394314,1722102639662,-288.841868,0.00013678,2]
[333394315,1722102639672,-288.841868,0.00013678,2]
[333394316,1722102639684,-151.0,0.00013678,2]
[333394317,1722102639694,-218.791047,0.00013678,2]
[333394318,1722102639703,-151.0,0.00013678,2]
[333394319,1722102639713,-218.791047,0.00013678,2]
[333394320,1722102639722,-1069.885073,0.00013678,2]
[333394321,1722102639731,-1069.885073,0.00013678,2]
[333394322,1722102639740,-151.0,0.00013678,2]
[333394323,1722102639750,-151.0,0.00013678,2]
[333394324,1722102639759,-151.0,0.00013678,2]
[333394325,1722102639769,-151.0,0.00013678,2]
[333394327,1722102639778,-1363.66446,0.00013678,2]
[333394329,1722102639788,-151.0,0.00013678,2]
[333394331,1722102639798,-1363.66446,0.00013678,2]
[333394333,1722102639807,-157.212796,0.00013678,2]
[333394335,1722102639817,-151.0,0.00013678,2]
[333394337,1722102639826,-343.494831,0.00013678,2]
[333394339,1722102639835,-535.37975,0.00013678,2]
[333394341,1722102639844,-343.494831,0.00013678,2]
[333394343,1722102639853,-535.37975,0.00013678,2]
[333394345,1722102639862,-1031.258444,0.00013678,2]
[333394347,1722102639872,-1031.258444,0.00013678,2]
[333394349,1722102639882,-151.0,0.00013678,2]
[333394351,1722102639891,-216.055335,0.00013678,2]
[333394353,1722102639901,-216.055335,0.00013678,2]
[333394355,1722102639910,-578.167958,0.00013678,2]
[333394357,1722102639920,-578.167958,0.00013678,2]
[333394359,1722102639932,-151.0,0.00013678,2]
[333394361,1722102639941,-151.0,0.00013678,2]
[333394363,1722102639951,-151.0,0.00013678,2]
[333394365,1722102639960,-462.312973,0.00013678,2]
[333394367,1722102639969,-769.67113,0.00013678,2]
[333394369,1722102639979,-462.312973,0.00013678,2]
[333394371,1722102639988,-769.67113,0.00013678,2]
[333394373,1722102639998,-27709.89115642,0.00013688,5]
[333394375,1722102640007,-151.0,0.00013688,2]
[333394377,1722102640016,-151.0,0.00013688,2]
[333394379,1722102640026,-151.0,0.00013688,2]
[333394381,1722102640035,-151.0,0.00013688,2]
[333394383,1722102640045,-151.0,0.00013688,2]
[333394385,1722102640054,-151.0,0.00013688,2]
[333394387,1722102640063,-151.0,0.00013688,2]
[333394389,1722102640073,-151.0,0.00013688,2]
[333394391,1722102640082,-151.0,0.00013688,2]
[333394393,1722102640091,-151.0,0.00013688,2]
[333394395,1722102640101,-151.0,0.00013688,2]
[333394397,1722102640110,-155.80642,0.00013688,2]
[333394399,1722102640120,-151.0,0.00013688,2]
[333394401,1722102640129,-151.0,0.00013688,2]
[333394403,1722102640138,-583.536551,0.00013688,2]
[333394405,1722102640147,-583.536551,0.00013688,2]
[333394407,1722102640157,-583.536551,0.00013688,2]
[333394409,1722102640166,-583.536551,0.00013688,2]
[333394411,1722102640175,-151.0,0.00013688,2]
[333394413,1722102640186,-290.146662,0.00013688,2]
[333394414,1722102640195,-151.0,0.00013688,2]
[333394416,1722102640205,-151.0,0.00013688,2]
[333394419,1722102640215,-288.841868,0.00013688,2]
[333394420,1722102640225,-288.841868,0.00013688,2]
[333394421,1722102640236,-288.841868,0.00013688,2]
[333394422,1722102640247,-288.841868,0.00013688,2]
[333394423,1722102640257,-151.0,0.00013688,2]
[333394424,1722102640267,-151.0,0.00013688,2]
[333394425,1722102640276,-218.791047,0.00013688,2]
[333394426,1722102640286,-218.791047,0.00013688,2]
[333394427,1722102640296,-151.0,0.00013688,2]
[333394428,1722102640306,-152.15397,0.00013688,2]
[333394429,1722102640316,-218.791047,0.00013688,2]
[333394430,1722102640328,-218.791047,0.00013688,2]
[333394431,1722102640338,-1069.885073,0.00013688,2]
[333394432,1722102640347,-1069.885073,0.00013688,2]
[333394433,1722102640357,-1069.885073,0.00013688,2]
[333394434,1722102640367,-1069.885073,0.00013688,2]
[333394435,1722102640376,-151.0,0.00013688,2]
[333394436,1722102640386,-151.0,0.00013688,2]
[333394437,1722102640396,-151.0,0.00013688,2]
[333394438,1722102640408,-151.0,0.00013688,2]
[333394439,1722102640418,-151.0,0.00013688,2]
[333394440,1722102640428,-151.0,0.00013688,2]
[333394441,1722102640440,-169.708361,0.00013688,2]
[333394442,1722102640451,-1363.66446,0.00013688,2]
[333394443,1722102640463,-151.0,0.00013688,2]
[333394444,1722102640473,-1363.66446,0.00013688,2]
[333394445,1722102640483,-151.0,0.00013688,2]
[333394446,1722102640492,-1363.66446,0.00013688,2]
[333394447,1722102640502,-1363.66446,0.00013688,2]
[333394448,1722102640512,-151.0,0.00013688,2]
[333394449,1722102640522,-151.0,0.00013688,2]
[333394450,1722102640532,-343.494831,0.00013688,2]
[333394451,1722102640542,-343.494831,0.00013688,2]
[333394452,1722102640552,-535.37975,0.00013688,2]
[333394453,1722102640562,-535.37975,0.00013688,2]
[333394454,1722102640572,-343.494831,0.00013688,2]
[333394455,1722102640581,-343.494831,0.00013688,2]
[333394456,1722102640594,-535.37975,0.00013688,2]
[333394457,1722102640604,-535.37975,0.00013688,2]
[333394458,1722102640616,-1031.258444,0.00013688,2]
[333394459,1722102640625,-1031.258444,0.00013688,2]
[333394460,1722102640634,-1031.258444,0.00013688,2]
[333394461,1722102640644,-1031.258444,0.00013688,2]
[333394462,1722102640653,-151.0,0.00013688,2]
[333394463,1722102640664,-151.0,0.00013688,2]
[333394464,1722102640674,-216.055335,0.00013688,2]
[333394465,1722102640688,-216.055335,0.00013688,2]
[333394466,1722102640697,-216.055335,0.00013688,2]